Cogmind - Beta 13 @@@ ROGUE MODE // 2024.04.30 @ 02:34:07 Player: lav Result: Destroyed by P-60 Hacker with Shock Rifle Performance ------------- Evolutions (3) 1500 Regions Visited (6) 1200 Robots Destroyed (105) 525 Value Destroyed (2903) 2903 Prototype IDs (11) 220 Alien Tech Used (0) 0 Bonus (-614) -614 TOTAL SCORE: 5734 Bonus ------- High Alert Combat Kills 51 Follower Combat Kills 225 Friendly Fire -890 Cogmind --------- Core Integrity 0/700 Matter 229/300 Energy 37/100 System Corruption 7% Temperature Cool (0) Movement Core (750) Ox14 Location -7/Factory Parts ------- > --- POWER (2) -------- (None) > --- PROPULSION (4) --- (None) > --- UTILITY (4) ------ High-capacity Storage Unit Advanced Targeting Computer Transmission Jammer Improved Power Shielding > --- WEAPON (3) ------- (None) > --- INVENTORY (20) --- Thermal Generator Compact Matter Pod (51) Advanced Visual Processing Unit Improved Signal Interpreter Improved Terrain Scanner Advanced Targeting Computer Launcher Guidance Computer Peak State ------------ > --- POWER ------------ Heavy Ion Engine Nuclear Core > --- PROPULSION ------- Improved Carbon-fiber Leg Improved Carbon-fiber Leg Improved Carbon-fiber Leg Improved Carbon-fiber Leg > --- UTILITY ---------- High-capacity Storage Unit Advanced Targeting Computer Improved Shield Generator Improved Shield Generator > --- WEAPON ----------- Shock Rifle Ion Cannon High-powered Shotgun > --- INVENTORY -------- Light Deuterium Engine Light Nuclear Core Titanium Leg Improved Carbon-fiber Leg Improved Carbon-fiber Leg Improved Carbon-fiber Leg Thermal Generator Improved Heat Sink Compact Matter Pod Advanced Visual Processing Unit Improved Signal Interpreter Improved Terrain Scanner Advanced Targeting Computer Launcher Guidance Computer Recoil Stabilizer Recoil Stabilizer Improved Power Shielding Improved Field Recycling Unit Pulse Rifle Advanced Beam Rifle [Rating: 49] Favorites ----------- Power Heavy Ion Engine Engine Heavy Ion Engine Power Core Nuclear Core Propulsion Improved Carbon-fiber Leg Leg Improved Carbon-fiber Leg Wheel Wheel Hover Unit Backup Propulsion I Utility High-capacity Storage Unit Device Improved Shield Generator Storage High-capacity Storage Unit Processor Advanced Targeting Computer Hackware Hacking Suite Protection Propulsion Shielding Weapon Heavy Assault Rifle Energy Gun Particle Gun Energy Cannon Ion Cannon Ballistic Gun Heavy Assault Rifle Ballistic Cannon Improved Light Cannon Launcher Rocket Launcher Slashing Weapon Makeshift Axe Special Melee Weapon Datajack Build | -11 -10 -10 -9 -9 -8 -7 ------- Run | Yrd Mat Min Mat Sto Mat Fac Slots Evolved 6 | . . . 2 . 2 2 Power 1 | . . . . . 1 . Propulsion 2 | . . . . . 1 1 Utility 2 | . . . 1 . . 1 Weapon 1 | . . . 1 . . . Parts Attached 126 | 6 22 3 12 18 33 32 Power 14 | 1 4 . 1 . 6 2 Engine 9 | 1 2 . 1 . 4 1 Core 5 | . 2 . . . 2 1 Reactor . | . . . . . . . Propulsion 35 | 2 7 1 1 5 10 9 Treads . | . . . . . . . Leg 33 | . 7 1 1 5 10 9 Wheel 2 | 2 . . . . . . Hover . | . . . . . . . Flight . | . . . . . . . Utility 24 | 1 1 . 4 3 7 8 Device 14 | . . . . 2 6 6 Storage 4 | 1 . . 2 . . 1 Processor 1 | . . . . . 1 . Hackware 1 | . 1 . . . . . Protection 4 | . . . 2 1 . 1 Artifact . | . . . . . . . Weapon 53 | 2 10 2 6 10 10 13 Energy Gun 16 | 1 3 . 2 2 5 3 Energy Cannon 3 | . . . . . 1 2 Ballistic Gun 14 | 1 2 1 . 3 4 3 Ballistic Cannon 2 | . . . 1 . . 1 Launcher 12 | . 1 . 3 4 . 4 Special Weapon . | . . . . . . . Impact Weapon . | . . . . . . . Slashing Weapon 2 | . . 1 . 1 . . Piercing Weapon . | . . . . . . . Special Melee Weapon 4 | . 4 . . . . . Unidentified Prototypes 1 | . . . . . 1 . Parts Lost 33 | . 2 . 1 5 2 23 Power 4 | . . . . . . 4 Propulsion 11 | . 1 . . 2 . 8 Utility 6 | . . . 1 1 1 3 Weapon 12 | . 1 . . 2 1 8 Highest Loss Streak 11 | . 1 . 1 3 1 11 To Critical Strikes . | . . . . . . . Average Slot Usage (%) 93 | . 97 100 96 88 96 83 Engine 9 | . 10 . 8 11 12 6 Core 4 | . 3 14 2 . 5 4 Leg 23 | . 19 28 22 21 23 24 Device 5 | . . . . . 8 10 Storage 10 | . 14 14 11 11 9 7 Processor 4 | . . . . . 9 7 Hackware 4 | . 13 14 11 5 . . Protection 2 | . . . 8 7 . . Energy Gun 8 | . 9 . 3 10 12 5 Energy Cannon 2 | . . . . . 4 3 Ballistic Gun 8 | . 13 14 5 7 9 4 Ballistic Cannon 1 | . . . 5 2 . 2 Launcher 4 | . 2 10 10 8 1 1 Slashing Weapon 1 | . . 3 8 1 . . Naked Turns . | . . . . . . . Heaviest Build 75 | 14 16 16 62 65 71 75 Greatest Support 71 | 20 20 25 25 25 54 71 Greatest Overweight (x) 15 | 3 2 . 2 5 2 15 Average Overweight (x) 1 | . . . . 2 1 1 Largest Inventory Capacity 20 | 8 8 8 20 20 20 20 Average Capacity 16 | 7 8 8 12 20 20 20 Most Carried 20 | 2 8 8 18 19 20 20 Average Carried 15 | 1 6 7 11 15 19 16 Final Capacity 20 | 8 8 8 20 20 20 20 Final Carried 20 | 1 8 8 18 14 20 7 Class Distribution -------------------- 45% | Gunner 20% | Mutant 16% | Tank 15% | Scavenger-Mutant Dominant Class ---------------- Mutant | -10/Materials Scavenger-Mutant | -10/Mines Mutant | -9/Materials Tank | -9/Storage Gunner | -8/Materials Tank | -7/Factory Resources | -11 -10 -10 -9 -9 -8 -7 ----------- Run | Yrd Mat Min Mat Sto Mat Fac Matter Collected 2667 | 187 381 173 407 418 598 503 Remotely . | . . . . . . . Salvage Created 2959 | . 473 230 306 881 547 522 Parts 202 | . 31 16 30 54 34 37 Haulers Intercepted 1 | . . . 1 . . . Recyclers Shooed 7 | . . 2 1 4 . . Parts Field Recycled . | . . . . . . . Retrieved Matter . | . . . . . . . Parts Self-Destructed . | . . . . . . . Prevented . | . . . . . . . Kills | -11 -10 -10 -9 -9 -8 -7 ------- Run | Yrd Mat Min Mat Sto Mat Fac Combat Hostiles Destroyed 69 | . 13 5 11 16 13 11 Melee 5 | . . . . 5 . . Guns 34 | . 12 2 1 4 13 2 Cannons 6 | . . . 1 . . 5 AOE 23 | . 1 3 9 7 . 3 Classes Destroyed 14 | . 3 4 3 . 1 3 Worker 3 | . . 1 1 1 . . Builder 11 | . . 1 2 1 1 6 Tunneler 1 | . . 1 . . . . Hauler 1 | . . . 1 . . . Recycler 5 | . . 1 . 2 . 2 Mechanic 1 | . . . . . . 1 Operator 2 | . 1 . 1 . . . Watcher 6 | . . . 3 2 . 1 Swarmer 10 | . 3 3 3 . 1 . Grunt 52 | . 10 2 7 18 8 7 Sentry 7 | . . . 1 3 3 . Demolisher 2 | . . . . . . 2 Hunter 2 | . . . . . 1 1 Programmer 1 | . . . . . . 1 Thug 1 | . . 1 . . . . Best Kill Streak 6 | . 2 4 6 4 4 6 Combat Bots Only 4 | . 2 3 3 4 3 3 Max Kills in Single Turn 4 | . 2 3 3 4 2 4 Gunslinging 1 | . 1 . . . 1 . Exploded 2 | . 1 2 2 2 . 2 Melee 1 | . . . . 1 . . Uniques/NPCs Destroyed . | . . . . . . . Combat | -11 -10 -10 -9 -9 -8 -7 -------- Run | Yrd Mat Min Mat Sto Mat Fac Hostile Shots Fired 441 | . 63 3 41 69 83 182 Missed 103 | . 12 . 15 16 18 42 Damage Taken 5641 | . 556 49 329 862 893 2952 Core 1185 | . 168 13 12 165 127 700 Absorbed by Shields 376 | . . . . . 115 261 Redirected to Shielding 60 | . . . . 3 . 57 Regen/Repaired (Parts) 194 | . 27 . . . 167 . Core Remaining (%) 64 | 100 . 27 . 55 76 . Volleys Fired 181 | . 38 9 25 24 37 48 Largest 3 | . 2 2 3 3 3 3 Hottest 173 | . 88 53 137 163 147 173 Shots Fired 379 | . 69 18 44 58 83 107 Gun 244 | . 68 9 17 37 72 41 Cannon 77 | . . . 10 6 10 51 Launcher 58 | . 1 9 17 15 1 15 Special . | . . . . . . . Kinetic 182 | . 38 9 25 19 37 54 Thermal 126 | . 30 . 2 24 39 31 Explosive 58 | . 1 9 17 15 1 15 Electromagnetic 13 | . . . . . 6 7 Robot Hit Streak 16 | . 16 13 16 7 9 12 Robot Miss Streak 4 | . 2 . 4 3 3 3 Penetration Max . | . . . . . . . Secondary Targets 4 | . 1 . . 1 2 . Max Gunslinging Chain 1 | . 1 . . 1 1 . Shots Hit Robots 253 | . 57 9 17 39 63 68 Core Hits 160 | . 22 16 23 38 26 35 Critical Kills 1 | . 1 . . . . . Critical Parts Destroyed 2 | . 1 . . . 1 . Critical Strikes 7 | . 4 . . 1 2 . Burn 4 | . 2 . . 1 1 . Destroy 3 | . 2 . . . 1 . Melee Attacks 25 | . 8 . . 17 . . Impact . | . . . . . . . Slashing 17 | . . . . 17 . . Piercing . | . . . . . . . Sneak Attacks 2 | . 2 . . . . . Combat Hostiles . | . . . . . . . Follow-up Attacks . | . . . . . . . Damage Inflicted 7857 | . 734 507 1218 2109 1276 2013 Guns 2794 | . 698 94 127 279 1117 479 Cannons 1061 | . . . 83 85 134 759 Explosions 3505 | . 36 413 1008 1306 5 737 Melee 439 | . . . . 439 . . Ramming 58 | . . . . . 20 38 Kinetic 2179 | . 339 94 197 153 599 797 Thermal 1574 | . 359 . 13 211 580 411 Explosive 3505 | . 36 413 1008 1306 5 737 Electromagnetic 102 | . . . . . 72 30 Impact . | . . . . . . . Slashing 439 | . . . . 439 . . Piercing . | . . . . . . . Highest Corruption 7 | . . . 3 6 . 7 Average Corruption 2 | . . . 2 3 . 2 Corruption Purged . | . . . . . . . Corruption Blocked . | . . . . . . . Effects 52 | . . . 15 24 . 13 Message Errors 17 | . . . 6 7 . 4 Matter Fused 12 | . . . 4 5 . 3 Heat Flow Errors 4 | . . . . 4 . . Energy Discharges 6 | . . . 3 . . 3 Parts Rejected 2 | . . . . 1 . 1 Parts Fused 1 | . . . . . . 1 Data Loss (minor) 6 | . . . 2 4 . . Misfires 4 | . . . . 3 . 1 Overload Shots . | . . . . . . . Overflow Damage 202 | . . . 50 75 . 77 Projectiles 7 | . . . . . . 7 Explosions 175 | . . . 50 61 . 64 Melee 20 | . . . . 14 . 6 Knockbacks 8 | . . . . 1 . 7 Impact . | . . . . . . . Kinetic 6 | . . . . 1 . 5 Secondary 2 | . . . . . . 2 Self-Inflicted Damage 578 | . . 30 25 212 28 283 Shots 18 | . . 2 1 6 1 8 Rammed . | . . . . . . . Targets Rammed 7 | . . . . . 4 3 Kicked 7 | . . . . . 4 3 Crushed . | . . . . . . . Highest Temperature 389 | . 231 . 150 253 389 324 Average Temperature 95 | . 66 . 32 67 154 95 Received Heat Transfer 1771 | . 261 . 135 336 486 553 Effects 3 | . . . . . 3 . Shutdowns 1 | . . . . . 1 . Interference 2 | . . . . . 2 . Siege Activations . | . . . . . . . Robots Corrupted . | . . . . . . . Combat Hostiles . | . . . . . . . Parts Fried . | . . . . . . . Impact Corruptions 2 | . . . . . . 2 Robots Melted . | . . . . . . . Combat Hostiles . | . . . . . . . Parts Melted 1 | . 1 . . . . . Heat Transferred 3552 | . 1110 . 37 592 1184 629 Parts Sabotaged . | . . . . . . . Parts Stolen . | . . . . . . . Parts Stripped . | . . . . . . . Power Chain Reactions . | . . . . . . . Alert | -11 -10 -10 -9 -9 -8 -7 ------- Run | Yrd Mat Min Mat Sto Mat Fac Peak Influence 482 | . 295 245 370 482 246 161 Initial 200 | . . 59 17 92 200 29 Average 146 | . 125 141 229 371 75 49 Maximum Alert Level 2 | . 1 1 1 2 1 . Low Security (%) 65 | 100 90 54 32 4 84 100 Level 1 27 | . 9 45 67 52 15 . Level 2 6 | . . . . 43 . . Level 3 . | . . . . . . . Level 4 . | . . . . . . . Level 5 . | . . . . . . . High Security . | . . . . . . . Max Security . | . . . . . . . Squads Dispatched 24 | . 3 . 2 4 6 9 Investigation 12 | . 1 . 2 3 4 2 Extermination 3 | . . . . . . 3 Reinforcement 9 | . 2 . . 1 2 4 Assault . | . . . . . . . Garrison . | . . . . . . . Intercept . | . . . . . . . Searches Triggered . | . . . . . . . Construction Impeded 2 | . . . . . . 2 Haulers Reinforced 1 | . . . . . . 1 Active Scanning Responses . | . . . . . . . Cargo Convoy Interrupts . | . . . . . . . Stealth | -11 -10 -10 -9 -9 -8 -7 --------- Run | Yrd Mat Min Mat Sto Mat Fac Distress Signals 4 | . 1 . 1 1 1 . Communications Jammed . | . . . . . . . Distress Signals . | . . . . . . . Times Spotted 112 | . 16 4 18 29 15 30 Peak Tracking Total 7 | . 3 2 4 6 3 7 Tactical Retreats 2 | . . . . 1 1 . Traps | -11 -10 -10 -9 -9 -8 -7 ------- Run | Yrd Mat Min Mat Sto Mat Fac Traps Triggered 7 | . 1 . 3 3 . . Indirectly . | . . . . . . . Trap Hack Attempts . | . . . . . . . Triggered . | . . . . . . . Disarmed . | . . . . . . . Reprogrammed . | . . . . . . . Reused . | . . . . . . . Traps Extracted . | . . . . . . . Installed . | . . . . . . . Triggered . | . . . . . . . Machines | -11 -10 -10 -9 -9 -8 -7 ---------- Run | Yrd Mat Min Mat Sto Mat Fac Machines Disabled 12 | . 1 . 4 5 . 2 Max in Single Turn 2 | . 1 . 2 1 . 1 Machines Repaired . | . . . . . . . Machines Dismantled . | . . . . . . . Machines Sabotaged . | . . . . . . . Overloaded Fab Kills . | . . . . . . . Hacking | -11 -10 -10 -9 -9 -8 -7 --------- Run | Yrd Mat Min Mat Sto Mat Fac Machines Accessed 22 | . 2 . 3 5 10 2 Terminals 16 | . 1 . 3 5 6 1 Fabricators 1 | . . . . . . 1 Repair Stations 3 | . 1 . . . 2 . Recycling Units . | . . . . . . . Scanalyzers 1 | . . . . . 1 . Garrison Access 1 | . . . . . 1 . Total Hacks 61 | . 7 . 9 16 24 5 Successful 40 | . 4 . 5 9 19 3 Failed 21 | . 3 . 4 7 5 2 Catastrophic 2 | . . . 1 . . 1 Database Lockouts . | . . . . . . . Manual . | . . . . . . . Terminals 43 | . 2 . 9 16 13 3 Fabricators 2 | . . . . . . 2 Repair Stations 9 | . 5 . . . 4 . Recycling Units . | . . . . . . . Scanalyzers 5 | . . . . . 5 . Garrison Access 2 | . . . . . 2 . Terminal Hacks 28 | . 1 . 5 9 10 3 Record 5 | . . . . 2 1 2 Prototype ID Bank 5 | . . . 3 1 1 . Open Door 1 | . . . . 1 . . Emergency Access Points 2 | . . . 2 . . . Repair Station Index 1 | . . . . . 1 . Alert Level 1 | . . . . . 1 . Locate Traps 1 | . . . . 1 . . Dispatch Records 1 | . . . . . 1 . Maintenance Status 2 | . . . . 1 1 . Assault Status 1 | . . . . 1 . . Hauler Manifests 1 | . 1 . . . . . Registered Components 1 | . . . . 1 . . Registered Prototypes 2 | . . . . 1 1 . Zone Layout 4 | . . . . . 3 1 Fabricator Hacks . | . . . . . . . Repair Station Hacks 7 | . 3 . . . 4 . Scan Component 3 | . 1 . . . 2 . Repair 3 | . 1 . . . 2 . Refit 1 | . 1 . . . . . Recycling Unit Hacks . | . . . . . . . Scanalyzer 4 | . . . . . 4 . Insert Component 2 | . . . . . 2 . Analyze 2 | . . . . . 2 . Garrison Access Hacks 1 | . . . . . 1 . Unlock Access 1 | . . . . . 1 . Unauthorized Hacks . | . . . . . . . Terminals . | . . . . . . . Fabricators . | . . . . . . . Repair Stations . | . . . . . . . Recycling Units . | . . . . . . . Scanalyzers . | . . . . . . . Garrison Access . | . . . . . . . Data Cores Recovered . | . . . . . . . Used . | . . . . . . . Hacking Detections 15 | . 2 . 3 3 5 2 Full Trace Events 10 | . 1 . 2 3 2 2 Feedback Events . | . . . . . . . Feedback Blocked . | . . . . . . . Robot Schematics Acquired . | . . . . . . . Robots Built . | . . . . . . . Authchips . | . . . . . . . Time . | . . . . . . . Total Robot Build Rating . | . . . . . . . Part Schematics Acquired 2 | . . . . . 2 . Parts Built . | . . . . . . . Authchips . | . . . . . . . Time . | . . . . . . . Total Part Build Rating . | . . . . . . . Parts Repaired 3 | . 1 . . . 2 . Time 109 | . 26 . . . 83 . Parts Recycled . | . . . . . . . Recycled Matter . | . . . . . . . Retrieved Matter . | . . . . . . . Retrieved Components . | . . . . . . . Parts Scanalyzed 2 | . . . . . 2 . Part Schematics Acquired 2 | . . . . . 2 . Parts Damaged . | . . . . . . . Bothacking | -11 -10 -10 -9 -9 -8 -7 ------------ Run | Yrd Mat Min Mat Sto Mat Fac Used RIF Installer . | . . . . . . . Robots Hacked 4 | . 4 . . . . . Non-combat 2 | . 2 . . . . . Combat 2 | . 2 . . . . . Robot Hacks Applied 7 | . 7 . . . . . parse_system 5 | . 5 . . . . . no_distress 1 | . 1 . . . . . check_alert 1 | . 1 . . . . . Relay Couplers Released . | . . . . . . . Fabnet Peak Effective % . | . . . . . . . Robots Rewired . | . . . . . . . Allies Hacked . | . . . . . . . Hacks Repelled . | . . . . . . . Allies | -11 -10 -10 -9 -9 -8 -7 -------- Run | Yrd Mat Min Mat Sto Mat Fac Total Allies 13 | . . 3 . 10 . . Largest Group 10 | . . 3 3 10 . . Highest-Rated Group 88 | . . 40 40 88 . . Highest-Rated Ally 16 | . . 16 16 16 . . Total Orders . | . . . . . . . Ally Attacks 54 | . . . 13 41 . . Total Damage 526 | . . . 174 352 . . Kills 10 | . . . 3 7 . . Allies Corrupted 1 | . . . 1 . . . Allies Melted . | . . . . . . . Intel | -11 -10 -10 -9 -9 -8 -7 ------- Run | Yrd Mat Min Mat Sto Mat Fac Robot Analysis Total . | . . . . . . . Derelict Logs Recovered 2 | . . 2 . . . . Drone Launches 6 | . . . . 6 . . Drone Recoveries 3 | . . . . 3 . . Exploration | -11 -10 -10 -9 -9 -8 -7 ------------- Run | Yrd Mat Min Mat Sto Mat Fac Turns Passed 7266 | 71 533 605 1066 1097 2521 1373 Spaces Moved 3308 | 58 278 470 525 360 1041 576 Core 34 | 26 . . . . . 8 Treads . | . . . . . . . Legs 3167 | . 203 470 525 360 1041 568 Wheels 87 | 32 55 . . . . . Hover 20 | . 20 . . . . . Flight . | . . . . . . . Fastest Speed 50 | 50 80 120 120 260 183 122 Average Speed 187 | 104 122 120 184 262 209 200 Slowest Speed 800 | 200 250 120 260 470 260 800 Overloaded Moves . | . . . . . . . Propulsion Burnouts . | . . . . . . . Robots Hopped . | . . . . . . . Cave-ins Triggered . | . . . . . . . Exploration Rate (%) 45 | 4 39 78 44 56 84 15 Regions Visited 6 Branch Regions 2 Pre-discovered Areas . | . . . . . . . Known Exits Taken . | . . . . . . . Unknown Exits Taken 6 | 1 1 1 1 1 1 . Scrap Searched 2 | . . 2 . . . . Spaces Dug . | . . . . . . . Terrain Destroyed 341 | . 8 50 112 109 14 48 Melee . | . . . . . . . Projectile 4 | . . . . . 2 2 AOE 337 | . 8 50 112 109 12 46 Terrain Rammed . | . . . . . . . Walls Destroyed . | . . . . . . . Machines Disabled . | . . . . . . . Actions | -11 -10 -10 -9 -9 -8 -7 --------- Run | Yrd Mat Min Mat Sto Mat Fac Total 4007 | 65 393 493 583 449 1320 704 Wait 218 | . 19 9 . 11 154 25 Move 3302 | 57 277 469 524 359 1040 576 Hop . | . . . . . . . Pick Up 75 | 2 18 1 15 6 25 8 Fast Attach 14 | 5 1 . . 1 3 4 Attach 39 | 1 3 . 2 10 4 19 Detach 6 | . . . . 4 . 2 Swap 73 | . 18 3 10 7 26 9 Drop 62 | . 11 2 7 5 27 10 Fire 181 | . 38 9 25 24 37 48 Melee 25 | . 8 . . 17 . . Ram . | . . . . . . . Kick 7 | . . . . . 4 3 Crush . | . . . . . . . Escape Stasis 5 | . . . . 5 . . Rewire . | . . . . . . . Trap . | . . . . . . . Miscellaneous . | . . . . . . . Route ------- -11/Scrapyard -10/Materials (discovered 2 exits: [*Min x2]) -10/Mines (discovered 2 exits: *Mat x2) -9/Materials (discovered 3 exits: *Mat / *Min / *Sto) -9/Storage -8/Materials (discovered 4 exits: *Fac x3 / Gar) -7/Factory (discovered 1 exit: [*Fac]) History --------- Turn | Location | Event 50 | -11/Scrapyard | Discovered new exit (range 15) 72 | -11/Scrapyard | Entered Materials 237 | -10/Materials | Discovered new exit (range 4) 352 | -10/Materials | Repaired Aluminum Leg? 379 | -10/Materials | Core integrity fell below 50% 443 | -10/Materials | Discovered new exit (range 9) 605 | -10/Materials | Entered Mines 615 | -10/Mines | Met a Derelict bent on vengeance 706 | -10/Mines | Found a hidden stash of uninstalled traps 727 | -10/Mines | Build established: Scavenger-Mutant 737 | -10/Mines | Discovered new exit (range 6) 757 | -10/Mines | Learned Materials garrison access intel 884 | -10/Mines | Discovered new exit (range 5) 965 | -10/Mines | A weapon hastily lodged in a ceiling crevice suddenly fell to the ground 984 | -10/Mines | Learned 2 Materials zone layouts 1057 | -10/Mines | Assisted by bots powering up and referring to "LRC-V3" 1210 | -10/Mines | Entered Materials 1210 | -9/Materials | Accompanied by 3 allies 1210 | -9/Materials | Evolved 2 slots: Utility x1, Weapon x1 1211 | -9/Materials | Identified exit to Mines 1426 | -9/Materials | Discovered new exit (range 16) 1695 | -9/Materials | Discovered new exit (range 16) 1777 | -9/Materials | Build established: Mutant 2276 | -9/Materials | Entered Storage 2294 | -9/Storage | Assisted by bots powering up and referring to "LRC-V3" 2437 | -9/Storage | Murdered 4 allies 2515 | -9/Storage | Lost 3 allies 2572 | -9/Storage | Lost 3 parts (1n2w) 2987 | -9/Storage | Build established: Tank 3231 | -9/Storage | Lost 3 allies 3279 | -9/Storage | Discovered new exit (range 13) 3373 | -9/Storage | Entered Materials 3373 | -8/Materials | Evolved 2 slots: Power x1, Propulsion x1 3374 | -8/Materials | Loaded intel: 1 garrison access location 3676 | -8/Materials | Build established: Gunner 3953 | -8/Materials | Repaired Hvy. Ion Engine 4396 | -8/Materials | Discovered new exit (range 15) 4649 | -8/Materials | Repaired Imp. Aluminum Leg 4751 | -8/Materials | Met 7R-MNS 5372 | -8/Materials | Discovered new exit (range 11) 5642 | -8/Materials | Identified exit to Garrison 5849 | -8/Materials | Discovered new exit (range 16) 5894 | -8/Materials | Entered Factory 5894 | -7/Factory | Evolved 2 slots: Propulsion x1, Utility x1 5895 | -7/Factory | Caught up to 7R-MNS 6091 | -7/Factory | Discovered new exit (range 11) 6212 | -7/Factory | Build established: Tank 6706 | -7/Factory | Assembled infested ambush trap array 6824 | -7/Factory | Lost 11 parts (3p4n3u1w) 7119 | -7/Factory | Core integrity fell below 50% 7134 | -7/Factory | Lost 9 parts (3n6w) 7242 | -7/Factory | Lost 3 parts (1p1n1w) 7247 | -7/Factory | Core integrity fell below 20% 7267 | -7/Factory | Destroyed by P-60 Hacker with Shock Rifle Last Messages --------------- 07165_ R-06 Scavenger collects Recalibrator. 07165_ U-05 Engineer lays Concrete. 07166_ Acquired 47 matter. 07168_ R-06 Scavenger collects Wheel. 07172_ U-05 Engineer repairs door. 07173_ U-05 Engineer lays Concrete. 07174_ Acquired 29 matter. 07179_ R-06 Scavenger collects Lgt. Nuclear Core. 07188_ K-01 Serf collects debris. 07200_ Slug penetrates P-60 Hacker. 07201_ Gauss Rifle destroyed. 07208_ Imp. Carbon-fiber Leg destroyed. 07211_ Lgt. Deuterium Engine destroyed. 07214_ PUW#R 8SKRJNO HJKABOH2 07228_ ALERT: Rogue bot located, Programmers report to Factory Zone 8T. 07234_ CZ9E>8%BFHH5TT=UT YRXX7GVRTX 07253_ K-01 Serf cleans the Fabricator. [Achievement: 5k Club] Map ----- +----------------------------------------------------+ | ############# ##???????+# #???# """ " | | #??????# # #???# | | ######## ##### #??????# # #???# """ " | | #??????# #???# ???????# # #???# """ " | | #??#####+##### ???????# # #???# """ " | | #??# # ???????# # #???# ?? | | #??# # #??????# #? ###?#???? | | #??# " " " " # #??????# #?? ##????? | | +#??# " " " " # ???????# #???? ##????? ## | | ????# " " " " # ######## #######+########## #? | | ????# " " " " # #? | | ????# " " " " # ^ + | | ????# " " " " / !! #? | | ????# " " " " # !! #? | | ????# " " " " # !! #? | | ????# " " " " # %#####+############ #? | | ????# # # #?????? #? | | ????# # u # #????????? | | ????# ! # " # """" ?????????? | | ????# + u """p #/![ """"???????????? | | ????#! # "" #/![ """"???????????? | | ????########### " #/[[ """????????????? | | ??????????????##### " # ???????????? | | ??????????????????# # """" """" ??????????? | | ??????????????????# # """" """"???????????? | | ??????????????????# @ # """" """????????????? | | ????????????####### # """" ""?????????????? | | ????????? k # ??????????????????? | | ???????? ^ ^"" ###?+#????#???????????? | | ????????? """ #??? #??? #???????????? | | ????????? ^k"" k#### #### #####???????? | | ?????????? ""F" #???????? | | ??????????### """" #???????? | | ????????????# """ +???????? | | ????????????# % p #???????? | | ????????????# #???????? | | ????????????# a#####/######### #???????? | | ????????????# # #?????????????? | | ?????????+ + #?????????????? | | ?????????####### ##### """" #?????????????? | | ???????????????# ????# """" #?????????????? | | ???????????????### ?????# """" #?????????????? | | ?????????????????# ?????# """" #?????????????? | | ?????????????????+ ??????+ #?????????????? | | ?????????????????#???????# #?????????????? | | ?????????????????????????##+########?????????????? | | ?????????????????????????????????????????????????? | | ?????????????????????????????????????????????????? | | ?????????????????????????????????????????????????? | | ?????????????????????????????????????????????????? | +----------------------------------------------------+ Best States ------------- Heat Dissipation 48 Energy Generation 23 Energy Capacity 420 Matter Stores 300 Matter Capacity 300 Sight Range 16 Robot Scan Range 15 Terrain Scan Density 10 Jamming Range 12 Armor Coverage 150 Power Shielding 66 Propulsion Shielding 33 Evasion (%) 55 Targeting Accuracy 8 Offensive Hacking 10 Item Schematics ----------------- Imp. Carbon-fiber Leg | -8/Materials | Scanalyzed Adv. Visual Processing Unit | -8/Materials | Scanalyzed Robot Schematics ------------------ None Fabricated ------------ Nothing Alien Tech Used ----------------- None Achievements -------------- 5k Club Backstab Hey, That's Mine! Maybe Next Time I'll Detach My Launcher Remodeling The More The Merrier Challenges ------------ None Game ------ Seed FactoryCombatRedirector Manual? 0 Play Time 01:17:43 Cumulative 5.7 hours Start 2024.04.28 @ 19:18:38 End 2024.04.30 @ 02:34:07 Sessions 3 Manual Loads 0 Difficulty Rogue Special Mode None Game No. 11 Rogue 11 Adventurer 0 Explorer 0 Win Type - Total 0 Types 0/0/0/0/0/0/0/0/0 Lore% 3 Gallery% 11 Achievement% 9 Wizard Run 0 Options --------- Layout 1 ASCII 0 Keyboard 0 Movement Mouse Keybinds 0 Fullscreen 1 Font 32/SmallcapsGlow Map View 50x35 Zoom Use 0% Tactical HUD 1 Map Filters NONE Filters NONE Steam 1 RUN: 3eb682e6-74c2-4978-beef-98e117e184e9